bitfinex-derivatives/quotes_SOLF0:USTF0_20250413
["timestamp","ask_amount","ask_price","bid_price","bid_amount"]
[1744544441090,7.7306,129.38,129.36,7.79039271]
[1744544443187,0.05907983,129.39,129.3,3.0278]
[1744544443389,34.16,129.38,129.28,34.16]
[1744544443587,7.7356,129.3,129.27,7.7369]
[1744544443793,7.7356,129.3,129.25,34.16]
[1744544444091,7.7356,129.3,129.26,7.7374]
[1744544444292,7.7356,129.3,129.25,34.16]
[1744544444590,0.05698007,129.29,129.27,0.05502801]
[1744544445197,0.05698007,129.29,129.27,7.79182801]
[1744544446193,7.7365,129.28,129.27,0.05502801]
[1744544451690,7.7389,129.24,129.2,34.16]
[1744544451900,3.1746,129.28,129.2,34.16]
[1744544452300,7.7385,129.25,129.22,7.7398]
[1744544452600,3.1746,129.28,129.2,34.16]
[1744544452899,0.05383491,129.25,129.22,0.05622463]
[1744544453600,0.05383491,129.25,129.23,7.7392]
[1744544454101,7.79213491,129.25,129.22,7.79592463]
[1744544454300,0.05383491,129.25,129.22,0.05622463]
[1744544454702,0.05383491,129.25,129.23,7.7394]
[1744544455004,0.05383491,129.25,129.22,0.05622463]
[1744544455803,0.05383491,129.25,129.23,7.7395]
[1744544456898,0.05383491,129.25,129.22,0.05622463]
[1744544457399,7.7395,129.23,129.22,0.05622463]
[1744544458504,0.05383491,129.25,129.22,0.05622463]
[1744544458905,7.7389,129.24,129.22,0.05622463]
[1744544460605,0.05383491,129.25,129.22,0.05622463]
[1744544461105,0.05383491,129.25,129.23,7.7389]
[1744544462807,0.05383491,129.25,129.24,7.7389]
[1744544463307,0.05383491,129.25,129.22,0.05622463]
[1744544463509,0.05383491,129.25,129.23,7.7392]
[1744544465309,0.05383491,129.25,129.24,7.7389]
[1744544466011,0.05383491,129.25,129.23,7.7392]
[1744544466511,651.5326,129.37,129.23,34.12]
[1744544466710,7.7357,129.3,129.27,7.737]
[1744544467311,7.7351,129.31,129.28,7.7363]
[1744544467508,7.7351,129.31,129.23,34.12]
[1744544467813,7.7344,129.32,129.29,7.7359]
[1744544468201,7.78554073,129.32,129.29,7.7359]
[1744544468405,7.7349,129.31,129.29,7.7358]
[1744544469013,7.78554073,129.32,129.29,7.7358]
[1744544470015,7.7348,129.31,129.28,7.79429885]
[1744544472613,7.7353,129.3,129.28,7.79429885]
[1744544473312,7.7359,129.29,129.28,0.05809885]
[1744544475309,7.7377,129.26,129.23,34.12]
[1744544476215,7.79572948,129.26,129.24,7.7386]
[1744544477615,7.79572948,129.26,129.23,41.91318051]
[1744544477916,0.05802948,129.26,129.23,0.05398051]
[1744544478611,7.7389,129.24,129.23,0.05398051]
[1744544481613,7.7386,129.25,129.23,0.05398051]
[1744544483822,7.7386,129.25,129.23,7.79348051]
[1744544484124,7.7386,129.25,129.23,0.05398051]
[1744544485922,0.05802948,129.26,129.23,0.05398051]
[1744544486426,7.7355,129.3,129.27,7.7367]
[1744544486626,6.3239,129.33,129.25,34.12]
[1744544487127,7.7349,129.31,129.28,7.7361]
[1744544487629,7.78540845,129.31,129.28,7.79198165]
[1744544488229,0.05050845,129.31,129.28,0.05588165]
[1744544489019,0.05050845,129.31,129.3,7.7353]
[1744544489330,40.2629,129.37,129.29,34.12]
[1744544489626,40.2629,129.37,129.3,3.1057]
[1744544489828,7.7325,129.35,129.32,7.7337]
[1744544490529,7.79014957,129.35,129.32,7.78905092]
[1744544491228,0.05764957,129.35,129.32,0.05535092]
[1744544491934,0.05764957,129.35,129.32,7.78905092]
[1744544492133,0.05764957,129.35,129.32,0.05535092]
[1744544492435,7.7332,129.34,129.32,0.05535092]
[1744544493034,0.05764957,129.35,129.32,0.05535092]
[1744544494035,7.7335,129.33,129.32,0.05535092]
[1744544497635,41.7535,129.33,129.32,0.05535092]
[1744544499238,7.7357,129.3,129.27,7.7369]
[1744544499940,7.7357,129.3,129.28,7.7364]
[1744544500636,7.78963011,129.3,129.28,7.7945046]
[1744544501440,7.78963011,129.3,129.28,0.0581046]
[1744544502640,7.7359,129.29,129.28,0.0581046]
[1744544509645,7.78943011,129.3,129.28,0.0581046]
[1744544509845,0.05393011,129.3,129.28,0.0581046]
[1744544510246,7.78933011,129.3,129.28,0.0581046]
[1744544512147,7.7359,129.29,129.28,0.0581046]
[1744544514952,34.02,129.29,129.21,6.3927]
[1744544515151,3.0089,129.28,129.2,34.02]
[1744544515451,3.0089,129.28,129.16,3.0242]
[1744544515452,5.9886,129.28,129.17,34.02]
[1744544515949,5.9886,129.28,129.18,7.7422]
[1744544516149,7.7401,129.22,129.21,0.04906292]
[1744544523254,7.7419,129.19,129.15,6.0672]
[1744544523454,7.7419,129.19,129.15,3.0054]
[1744544524657,0.05935362,129.18,129.16,7.7437]
[1744544527357,0.05935362,129.18,129.17,7.7431]
[1744544528363,0.05935362,129.18,129.15,3.0054]
[1744544529165,0.05935362,129.18,129.16,7.7435]
[1744544530365,7.80185362,129.18,129.15,10.7494]
[1744544530663,0.05935362,129.18,129.15,3.0054]
[1744544530862,0.05935362,129.18,129.16,7.7433]
[1744544531066,0.05935362,129.18,129.12,3.0071]
[1744544531765,7.7434,129.17,129.14,7.7448]
[1744544532162,0.05935362,129.18,129.12,3.0071]
[1744544532466,0.05935362,129.18,129.16,7.7433]
[1744544534568,0.05935362,129.18,129.12,3.0071]
[1744544535369,0.05935362,129.18,129.15,7.7442]
[1744544535564,0.05935362,129.18,129.12,3.0071]
[1744544535968,0.05935362,129.18,129.17,7.7431]
[1744544536669,0.05935362,129.18,129.12,3.0071]
[1744544537070,7.7431,129.17,129.14,7.7445]
[1744544537268,0.05935362,129.18,129.12,3.0071]
[1744544537959,0.05935362,129.18,129.17,7.7431]
[1744544542173,7.7404,129.22,129.19,7.7417]
[1744544542882,7.7398,129.23,129.2,7.7411]
[1744544543081,33.98,129.24,129.16,6.2723]
[1744544543276,0.05664749,129.23,129.2,0.05848835]
[1744544543481,0.05664749,129.23,129.22,7.7401]
[1744544547488,0.05664749,129.23,129.21,7.7405]
[1744544547687,0.05664749,129.23,129.2,0.05848835]
[1744544547986,0.05664749,129.23,129.22,7.7401]
[1744544549787,0.05664749,129.23,129.2,0.05848835]
[1744544550288,0.05664749,129.23,129.22,7.7401]
[1744544554592,0.05664749,129.23,129.21,7.7404]
[1744544556493,0.05664749,129.23,129.22,7.7401]
[1744544556793,33.98,129.28,129.21,3.2593]
[1744544557188,7.7384,129.25,129.22,7.7397]
[1744544557381,33.98,129.28,129.21,3.2593]
[1744544557796,0.05514894,129.26,129.24,7.7386]
[1744544558590,7.79284894,129.26,129.24,7.7386]
[1744544559090,0.05514894,129.26,129.25,7.7383]
[1744544560093,0.05514894,129.26,129.23,0.05145493]
[1744544560492,7.79324894,129.26,129.24,7.7388]
[1744544561691,0.05514894,129.26,129.24,7.7388]
[1744544563793,0.05514894,129.26,129.25,7.7383]
[1744544565489,0.05514894,129.26,129.24,7.7386]
[1744544566293,0.05514894,129.26,129.23,0.05145493]
[1744544566895,7.79314894,129.26,129.23,7.79065493]
[1744544567096,0.05514894,129.26,129.23,0.05145493]
[1744544567395,0.05514894,129.26,129.25,7.7383]
[1744544570793,33.88,129.3,129.23,37.08405493]
[1744544571199,7.7369,129.28,129.25,7.7378]
[1744544571700,33.88,129.3,129.25,7.7378]
[1744544571900,0.05314455,129.28,129.25,7.78717092]
[1744544572201,7.7371,129.27,129.25,0.04937092]
[1744544573202,7.7377,129.26,129.25,0.04937092]
[1744544573791,7.78994455,129.28,129.25,0.04937092]
[1744544573998,0.05314455,129.28,129.26,7.7374]
[1744544576502,0.05314455,129.28,129.27,7.7371]
[1744544579007,33.88,129.33,129.3,7.7352]
[1744544579207,33.88,129.33,129.27,33.88]
[1744544579402,33.88,129.33,129.3,7.7352]
[1744544579598,33.88,129.33,129.27,33.88]
[1744544580007,0.05497516,129.31,129.29,0.05114054]
[1744544582111,7.7353,129.3,129.29,0.05114054]
[1744544582800,0.05497516,129.31,129.29,0.05114054]
[1744544583207,0.05497516,129.31,129.3,7.7353]
[1744544584010,0.05497516,129.31,129.29,0.05114054]
[1744544584403,7.7353,129.3,129.29,0.05114054]
[1744544587812,7.7378,129.26,129.24,33.86]
[1744544588208,7.7378,129.26,129.22,3.2451]
[1744544588611,7.7378,129.26,129.23,7.7395]
[1744544589008,7.79375852,129.26,129.23,7.79612719]
[1744544589208,0.05595852,129.26,129.24,7.7389]
[1744544589510,0.05595852,129.26,129.23,0.05662719]
[1744544589911,7.79365852,129.26,129.23,7.79572719]
[1744544591215,7.79365852,129.26,129.23,0.05662719]
[1744544591817,7.7383,129.25,129.23,0.05662719]
[1744544592718,7.79395852,129.26,129.23,7.79612719]
[1744544592913,0.05595852,129.26,129.23,7.79612719]
[1744544593419,7.7383,129.25,129.23,7.79612719]
[1744544593612,0.05595852,129.26,129.23,7.79612719]
[1744544593814,7.79395852,129.26,129.23,7.79612719]
[1744544594924,7.7383,129.25,129.23,7.79612719]
[1744544595121,0.05595852,129.26,129.23,0.05662719]
[1744544595521,7.7389,129.24,129.23,0.05662719]
[1744544595826,0.05595852,129.26,129.23,0.05662719]
[1744544596122,7.7386,129.25,129.23,0.05662719]
[1744544598426,7.79395852,129.26,129.23,7.79612719]
[1744544598623,0.05595852,129.26,129.23,0.05662719]
[1744544599527,7.7386,129.25,129.23,0.05662719]
[1744544604928,7.79395852,129.26,129.23,7.79612719]
[1744544605231,0.05595852,129.26,129.23,7.79612719]
[1744544605428,0.05595852,129.26,129.23,0.05662719]
[1744544605627,7.7386,129.25,129.23,0.05662719]
[1744544607027,7.79385852,129.26,129.23,7.79582719]
[1744544608131,7.7385,129.25,129.23,7.79582719]
[1744544608833,7.7385,129.25,129.23,0.05662719]
[1744544609233,7.7389,129.24,129.23,0.05662719]
[1744544611535,7.7386,129.25,129.23,0.05662719]
[1744544619642,7.7389,129.24,129.23,0.05662719]
[1744544624643,3.2079,129.25,129.13,202.97541016]
[1744544624847,7.7426,129.18,129.14,39.9012]
[1744544625241,33.72,129.22,129.14,41.4645]
[1744544625437,7.7435,129.17,129.14,41.4645]
[1744544625943,7.80001677,129.17,129.14,41.52380204]
[1744544626751,7.7441,129.16,129.14,33.77930204]
[1744544627046,7.7441,129.16,129.14,0.05930204]
[1744544627447,0.05651677,129.17,129.14,0.05930204]
[1744544628051,0.05651677,129.17,129.14,7.80370204]
[1744544628344,0.05651677,129.17,129.14,0.05930204]
[1744544629347,0.05651677,129.17,129.15,7.7442]
[1744544629541,0.05651677,129.17,129.14,0.05930204]
[1744544629943,0.05651677,129.17,129.15,7.744]
[1744544630148,0.05651677,129.17,129.14,0.05930204]
[1744544630950,0.05651677,129.17,129.15,7.7438]
[1744544632249,0.05651677,129.17,129.16,7.7437]
[1744544640553,33.72,129.22,129.18,7.7422]
[1744544640851,33.72,129.22,129.16,3.0614]
[1744544641044,33.72,129.22,129.17,7.7429]
[1744544641354,7.7416,129.2,129.17,7.7429]
[1744544641549,33.72,129.22,129.16,10.8047]
[1744544641749,0.04902416,129.2,129.17,0.05528636]
[1744544641952,7.7419,129.19,129.17,0.05528636]
[1744544642355,0.04902416,129.2,129.17,0.05528636]
[1744544642655,7.79062416,129.2,129.17,0.05528636]
[1744544643852,7.7419,129.19,129.17,0.05528636]
[1744544644050,0.04902416,129.2,129.17,0.05528636]
[1744544644251,7.79072416,129.2,129.17,0.05528636]
[1744544644459,7.79072416,129.2,129.17,7.79828636]
[1744544654054,7.742,129.19,129.17,7.79828636]
[1744544655560,7.742,129.19,129.17,0.05528636]
[1744544657263,7.79052416,129.2,129.17,7.79818636]
[1744544657559,0.04902416,129.2,129.17,0.05528636]
[1744544657768,0.04902416,129.2,129.18,7.7422]
[1744544658364,7.79032416,129.2,129.18,7.7422]
[1744544659565,0.04902416,129.2,129.18,7.7422]
[1744544660162,0.04902416,129.2,129.19,7.7419]
[1744544661471,10.9464,129.25,129.22,7.7399]
[1744544662667,10.9975847,129.25,129.22,7.79604927]
[1744544662970,3.2590847,129.25,129.23,7.7394]
[1744544663270,0.0511847,129.25,129.22,0.05614927]
[1744544664571,0.0511847,129.25,129.23,7.7395]
[1744544666173,7.7895847,129.25,129.23,7.7395]
[1744544666770,0.0511847,129.25,129.23,7.7395]
[1744544667773,0.0511847,129.25,129.24,7.7389]
[1744544669266,33.62,129.3,129.22,0.05614927]
[1744544669473,33.62,129.3,129.2,33.64]
[1744544669772,33.62,129.32,129.2,33.64]
[1744544669972,33.62,129.32,129.2,236.61541016]
[1744544670173,7.7348,129.31,129.2,236.61541016]
[1744544670571,0.05504785,129.27,129.26,7.7377]
[1744544670769,7.7348,129.31,129.25,33.62]
[1744544670970,0.05839372,129.28,129.25,33.67307385]
[1744544672279,0.05839372,129.28,129.27,7.7371]
[1744544675073,0.05839372,129.28,129.25,0.05307385]
[1744544675678,7.7374,129.27,129.25,0.05307385]
[1744544675883,0.05839372,129.28,129.25,0.05307385]
[1744544676981,7.7377,129.26,129.25,0.05307385]
[1744544677482,7.7374,129.27,129.25,0.05307385]
[1744544678682,7.7377,129.26,129.25,0.05307385]
[1744544686787,33.57839372,129.28,129.25,0.05307385]
[1744544687992,7.7377,129.26,129.25,0.05307385]
[1744544688792,7.7373,129.27,129.25,0.05307385]
[1744544689193,33.57839372,129.28,129.25,0.05307385]
[1744544689594,7.7377,129.26,129.25,0.05307385]
[1744544692099,0.05839372,129.28,129.25,0.05307385]
[1744544692802,7.79539372,129.28,129.25,7.79137385]
[1744544693701,7.7372,129.27,129.25,7.79137385]
[1744544695601,7.7372,129.27,129.25,0.05307385]
[1744544701317,7.7372,129.27,129.25,7.79127385]
[1744544701615,0.05839372,129.28,129.25,0.05307385]
[1744544702708,0.05839372,129.28,129.26,7.7377]
[1744544703618,0.05839372,129.28,129.27,7.7371]
[1744544703920,2.1618,129.35,129.25,33.57307385]
[1744544704214,145.33083165,129.36,129.25,33.52]
[1744544704612,153.06283165,129.36,129.33,7.7332]
[1744544704807,145.33083165,129.36,129.33,7.78620754]
[1744544705012,145.39042926,129.36,129.33,0.05300754]
[1744544705214,7.7326,129.35,129.33,0.05300754]
[1744544705812,7.7326,129.35,129.33,33.57300754]
[1744544706018,0.05959761,129.36,129.33,0.05300754]
[1744544706517,0.05959761,129.36,129.35,7.7323]
[1744544709018,0.05959761,129.36,129.35,9.9078]
[1744544709214,37.7988,129.43,129.35,2.1755]
[1744544709215,7.7288,129.41,129.35,2.1755]
[1744544709717,7.7297,129.4,129.36,7.7314]
[1744544710022,35.6808,129.43,129.35,2.1755]
[1744544710220,7.7302,129.39,129.35,9.9074]
[1744544710521,0.05903243,129.4,129.31,646.22]
[1744544710716,7.7321,129.36,129.33,7.7333]
[1744544710912,33.5,129.39,129.31,646.22]
[1744544711116,2.1487,129.38,129.31,33.52]
[1744544711324,2.1487,129.38,129.31,41.2545]
[1744544711523,4.2726,129.38,129.31,41.2545]
[1744544711716,0.05128146,129.36,129.33,0.04992862]
[1744544712121,7.7323,129.35,129.33,0.04992862]
[1744544712324,0.05128146,129.36,129.33,0.04992862]
[1744544712820,7.7323,129.35,129.33,0.04992862]
[1744544713022,0.05128146,129.36,129.33,0.04992862]
[1744544715227,0.05128146,129.36,129.35,7.7323]
[1744544715427,0.05128146,129.36,129.33,0.04992862]
[1744544716329,0.05128146,129.36,129.34,7.7325]
[1744544717029,0.05128146,129.36,129.35,7.7323]
[1744544719232,37.5029,129.42,129.34,2.0556]
[1744544719435,35.4897,129.42,129.34,2.0556]
[1744544719732,7.7296,129.4,129.37,7.731]
[1744544719932,2.1212,129.44,129.36,33.42]
[1744544720233,7.7277,129.43,129.4,7.729]
[1744544720531,0.05562269,129.41,129.4,7.729]
[1744544723230,35.4803,129.47,129.4,33.42]
[1744544723528,7.726,129.46,129.4,33.42]
[1744544723726,7.726,129.46,129.43,7.7272]
[1744544723928,35.4803,129.47,129.43,7.7272]
[1744544724335,0.05812733,129.46,129.44,0.05589993]
[1744544725234,7.7264,129.45,129.44,0.05589993]
[1744544726032,7.78402733,129.46,129.44,0.05589993]
[1744544728135,7.7263,129.45,129.44,0.05589993]
[1744544730828,7.7263,129.45,129.4,7.7291]
[1744544730829,7.7278,129.43,129.4,7.7291]
[1744544731939,7.78372062,129.43,129.4,7.77955056]
[1744544732139,7.78372062,129.43,129.41,7.7287]
[1744544732341,7.78372062,129.43,129.4,0.05045056]
[1744544732638,7.78372062,129.43,129.4,7.77935056]
[1744544733335,7.78372062,129.43,129.41,7.7287]
[1744544734940,0.05592062,129.43,129.42,7.7281]
[1744544737743,0.05592062,129.43,129.4,0.05045056]
[1744544738245,7.78372062,129.43,129.4,7.77935056]
[1744544739547,7.78372062,129.43,129.41,7.7286]
[1744544741148,7.78372062,129.43,129.4,7.77945056]
[1744544742648,7.78372062,129.43,129.41,7.7286]
[1744544743748,7.78372062,129.43,129.4,7.77965056]
[1744544745545,0.05592062,129.43,129.4,0.05045056]
[1744544745844,33.37592062,129.43,129.4,0.05045056]
[1744544746046,41.10372062,129.43,129.4,0.05045056]
[1744544746250,7.78372062,129.43,129.4,0.05045056]
[1744544746447,0.05592062,129.43,129.42,7.7281]
[1744544746855,33.32,129.51,129.41,1.993]
[1744544747151,35.2832,129.51,129.42,2.063]
[1744544748053,0.05714619,129.48,129.45,0.05039436]
[1744544749149,7.7254,129.47,129.45,7.77669436]
[1744544749354,0.05714619,129.48,129.45,0.05039436]
[1744544750154,7.78204619,129.48,129.45,7.77649436]
[1744544750658,7.7252,129.47,129.45,7.77649436]
[1744544751155,7.78204619,129.48,129.45,7.77649436]
[1744544756358,0.05714619,129.48,129.45,0.05039436]
[1744544757157,0.05714619,129.48,129.46,7.7254]
[1744544758563,7.78174619,129.48,129.46,7.7254]
[1744544758756,7.78174619,129.48,129.45,7.77659436]
[1744544759262,7.7252,129.47,129.45,7.77659436]
[1744544760557,7.78194619,129.48,129.45,7.77659436]
[1744544762864,7.78194619,129.48,129.46,7.7256]
[1744544763266,7.78194619,129.48,129.45,0.05039436]
[1744544763466,7.78194619,129.48,129.45,7.77639436]
[1744544764669,7.78194619,129.48,129.46,7.7257]
[1744544764863,7.7252,129.47,129.45,0.05039436]
[1744544765568,7.7252,129.47,129.45,7.77639436]
[1744544768375,7.78194619,129.48,129.45,7.77639436]
[1744544769679,0.05714619,129.48,129.46,7.7257]
[1744544770175,0.05714619,129.48,129.47,7.7251]
[1744544770674,0.05714619,129.48,129.45,0.05039436]
[1744544771876,0.05714619,129.48,129.47,7.7251]
[1744544772478,0.05714619,129.48,129.46,7.7255]
[1744544772980,7.78194619,129.48,129.45,7.77639436]
[1744544773382,0.05714619,129.48,129.45,7.77639436]
[1744544774082,0.05714619,129.48,129.46,7.7257]
[1744544774981,122.15682082,129.59,129.46,33.24]
[1744544775173,2.0983,129.55,129.46,35.2202]
[1744544775377,7.7224,129.52,129.49,7.7236]
[1744544775782,2.0983,129.55,129.46,35.2202]
[1744544776184,0.04887554,129.52,129.49,0.05888584]
[1744544776683,7.7232,129.51,129.49,0.05888584]
[1744544777285,7.7233,129.5,129.49,0.05888584]
[1744544778185,7.7231,129.51,129.49,0.05888584]
[1744544778487,0.04887554,129.52,129.49,0.05888584]
[1744544779185,7.7233,129.5,129.49,0.05888584]
[1744544779486,4.2199,129.51,129.43,33.22]
[1744544780081,7.7251,129.47,129.43,33.22]
[1744544780684,7.77978297,129.46,129.44,7.77681455]
[1744544780987,4.2199,129.51,129.44,0.05021455]
[1744544780988,33.22,129.48,129.44,0.05021455]
[1744544781182,0.05463485,129.46,129.44,0.05021455]
[1744544781380,7.7263,129.45,129.44,0.05021455]
[1744544781577,0.05463485,129.46,129.4,7.7291]
[1744544781984,0.05463485,129.46,129.37,33.22]
[1744544782285,33.22,129.48,129.39,7.7297]
[1744544782586,7.7285,129.42,129.39,7.7297]
[1744544782786,0.05216188,129.45,129.39,7.7297]
[1744544782987,33.22,129.48,129.39,7.78770234]
[1744544783177,0.05652877,129.43,129.39,7.7297]
[1744544783377,7.78402877,129.43,129.42,0.05338913]
[1744544786491,0.05652877,129.43,129.42,0.05338913]
[1744544787388,0.05652877,129.43,129.42,7.78148913]
[1744544788092,33.22,129.48,129.42,0.05338913]
[1744544788290,7.7252,129.47,129.42,2.14298913]
[1744544788490,33.22,129.48,129.42,2.14298913]
[1744544789088,0.04916011,129.46,129.44,7.7263]
[1744544789590,0.04916011,129.46,129.44,7.77677582]
[1744544790091,0.04916011,129.46,129.45,7.7263]
[1744544790292,0.04916011,129.46,129.44,0.05047582]
[1744544790593,7.77516011,129.46,129.44,0.05047582]
[1744544792493,0.04916011,129.46,129.44,7.77697582]
[1744544792896,0.04916011,129.46,129.44,0.05047582]
[1744544793194,7.77486011,129.46,129.44,0.05047582]
[1744544793397,0.04916011,129.46,129.44,0.05047582]
[1744544793896,7.7263,129.45,129.44,0.05047582]
[1744544794397,7.77516011,129.46,129.44,0.05047582]
[1744544794696,0.04916011,129.46,129.44,0.05047582]
[1744544795496,7.77516011,129.46,129.44,0.05047582]
[1744544795896,0.04916011,129.46,129.44,7.77737582]
[1744544797599,7.77526011,129.46,129.44,0.05047582]
[1744544797789,0.04916011,129.46,129.44,0.05047582]
[1744544798198,7.7263,129.45,129.44,0.05047582]
[1744544799097,7.77516011,129.46,129.44,0.05047582]
[1744544799295,0.04916011,129.46,129.45,7.7263]
[1744544800401,0.04916011,129.46,129.44,7.77707582]
[1744544800697,0.04916011,129.46,129.44,0.05047582]
[1744544801099,7.77506011,129.46,129.44,7.77727582]
[1744544801398,0.04916011,129.46,129.44,7.77727582]
[1744544803402,7.77496011,129.46,129.44,7.77727582]
[1744544803599,0.04916011,129.46,129.45,7.7263]
[1744544804503,0.04916011,129.46,129.44,7.77717582]
[1744544810110,33.16,129.45,129.3,36.39550375]
[1744544810301,58.4501,129.45,129.31,2.0964]
[1744544810706,7.732,129.36,129.31,9.831]
[1744544811105,33.16,129.37,129.31,2.0964]
[1744544811305,0.05867168,129.35,129.32,0.05120422]
[1744544811705,0.05867168,129.35,129.32,7.78480422]
[1744544811907,0.05867168,129.35,129.32,0.05120422]
[1744544812609,7.79137168,129.35,129.32,0.05120422]
[1744544813598,0.05867168,129.35,129.32,0.05120422]
[1744544814002,7.7313,129.37,129.33,7.7329]
[1744544815106,0.05697774,129.36,129.33,7.7329]
[1744544815608,7.78877774,129.36,129.33,7.7329]
[1744544819008,7.7323,129.35,129.32,7.78500422]
[1744544819214,0.05697774,129.36,129.32,0.05120422]
[1744544820310,0.05697774,129.36,129.28,34.50549954]
[1744544820311,33.21697774,129.36,129.28,33.16]
[1744544820615,33.16,129.36,129.27,2.0214]
[1744544821216,7.7356,129.3,129.27,2.0214]
[1744544821417,33.16,129.36,129.27,2.0214]
[1744544821615,0.0576,129.3,129.27,0.05444019]
[1744544821819,33.18,129.29,129.23,2.0737]
[1744544822118,33.18,129.28,129.19,13.26837594]
[1744544822421,33.18,129.27,129.19,13.26837594]
[1744544822919,7.7379,129.26,129.22,7.74]
[1744544823117,7.7379,129.26,129.22,7.79236019]
[1744544823310,0.05220015,129.24,129.22,7.79236019]
[1744544823514,0.05220015,129.24,129.22,0.05236019]
[1744544824320,7.79130015,129.24,129.22,0.05236019]
[1744544825516,40.9195,129.23,129.22,0.05236019]
[1744544825822,33.18,129.23,129.22,0.05236019]
[1744544826119,7.79150015,129.24,129.22,0.05236019]
[1744544826321,0.05220015,129.24,129.22,0.05236019]
[1744544826924,33.23220015,129.24,129.22,0.05236019]
[1744544827927,7.7395,129.23,129.22,0.05236019]
[1744544830229,7.7395,129.23,129.16,33.18]
[1744544830230,7.7411,129.21,129.17,7.743]
[1744544830529,33.18,129.24,129.17,7.743]
[1744544830929,7.7412,129.21,129.17,7.743]
[1744544831129,33.18,129.24,129.16,7.7435]
[1744544831428,7.7417,129.2,129.19,0.05195075]
[1744544831626,40.9417,129.2,129.19,0.05195075]
[1744544831825,33.2,129.2,129.19,0.05195075]
[1744544833431,40.9413,129.2,129.19,0.05195075]
[1744544834027,7.7428,129.18,129.13,35.2089]
[1744544834232,33.2,129.2,129.13,2.0089]
[1744544834734,33.2,129.2,129.13,9.7541]
[1744544835035,33.2,129.2,129.13,2.0089]
[1744544835229,0.05141192,129.18,129.15,0.05898932]
[1744544835429,7.79391192,129.18,129.15,7.80288932]
[1744544835828,7.79391192,129.18,129.15,0.05898932]
[1744544836033,0.05141192,129.18,129.15,0.05898932]
[1744544836430,0.05141192,129.18,129.09,4.1558]
[1744544836829,4.163,129.19,129.12,7.7457]
[1744544837430,4.163,129.19,129.09,4.1558]
[1744544837634,0.04905622,129.17,129.14,0.05082642]
[1744544838135,0.04905622,129.17,129.16,7.7437]
[1744544838530,0.04905622,129.17,129.15,9.9198]
[1744544838832,0.04905622,129.17,129.14,0.05082642]
[1744544839729,0.04905622,129.17,129.16,7.7437]
[1744544840636,0.04905622,129.17,129.15,7.7441]
[1744544841433,7.79225622,129.17,129.14,7.79542642]
[1744544841823,40.93225622,129.17,129.14,7.79542642]
[1744544843232,33.18905622,129.17,129.14,0.05082642]
[1744544843738,7.7443,129.15,129.14,0.05082642]
[1744544845436,40.8843,129.15,129.14,0.05082642]
[1744544847234,33.14,129.15,129.1,9.9227]
[1744544847442,33.14,129.15,129.05,33.16]
[1744544847739,33.14,129.15,129.07,7.7488]
[1744544848037,33.16,129.14,129.04,6.2224]
[1744544848440,0.05837532,129.1,129.08,0.05257723]
[1744544849743,0.05837532,129.1,129.08,7.80077723]
[1744544850241,0.05837532,129.1,129.09,7.7479]
[1744544850443,0.05837532,129.1,129.08,0.05257723]
[1744544850840,0.05837532,129.1,129.08,7.80067723]
[1744544851950,7.80567532,129.1,129.08,7.80067723]
[1744544852748,40.96567532,129.1,129.08,0.05257723]
[1744544852947,33.21837532,129.1,129.08,0.05257723]
[1744544853343,33.21837532,129.1,129.08,7.80057723]
[1744544853542,40.96567532,129.1,129.08,0.05257723]
[1744544853743,33.21837532,129.1,129.08,7.80097723]
[1744544853945,33.21837532,129.1,129.08,0.05257723]
[1744544854240,0.05837532,129.1,129.08,0.05257723]
[1744544854447,0.05837532,129.1,129.09,7.7479]
[1744544854645,0.05837532,129.1,129.08,0.05257723]
[1744544854842,0.05837532,129.1,128.99,37.1399]
[1744544855049,4.1426,129.11,129.0,2.0153]
[1744544855247,4.1426,129.11,128.94,373.5137]
[1744544855448,2.1046,129.1,128.98,2.16]
[1744544855648,7.7507,129.05,128.98,2.16]
[1744544855849,33.16,129.04,128.98,2.16]
[1744544856051,33.16,129.04,128.96,33.16]
[1744544856247,0.05154034,129.03,129.0,0.0526896]
[1744544856446,33.16,129.04,129.0,0.0526896]
[1744544856749,0.05135165,129.03,129.0,0.0526896]
[1744544857052,0.05135165,129.03,129.02,7.7521]
[1744544857552,33.16,129.07,129.05,7.75]